bitfinex/quotes_SOLUSD_20251202
["timestamp","ask_amount","ask_price","bid_price","bid_amount"]
[1764693368340,17.14754809,139.08,139.05,7.19165767]
[1764693368536,8.2,139.08,139.05,7.19165767]
[1764693368755,8.94754809,139.07,139.05,7.19165767]
[1764693368954,17.14754809,139.08,139.05,7.19165767]
[1764693369253,8.94754809,139.09,139.05,25.17080186]
[1764693369451,8.2,139.08,139.05,25.17080186]
[1764693369854,8.94754809,139.11,139.05,34.11834995]
[1764693370159,8.2,139.1,139.07,8.94754809]
[1764693370659,8.2,139.1,139.05,25.17080186]
[1764693370660,8.94754809,139.08,139.05,7.19165767]
[1764693371255,8.94754809,139.07,139.05,25.17026698]
[1764693371862,8.94754809,139.08,139.05,25.89026698]
[1764693372055,8.94754809,139.08,139.05,25.17026698]
[1764693372253,8.5,139.1,139.05,25.17026698]
[1764693372451,8.94754809,139.1,139.07,25.16718198]
[1764693372663,17.14754809,139.1,139.07,25.16718198]
[1764693372880,8.94754809,139.09,139.06,7.19062802]
[1764693373173,8.94754809,139.08,139.06,7.19062802]
[1764693373477,8.94754809,139.07,139.05,7.19149851]
[1764693374380,8.94754809,139.07,139.04,17.97942113]
[1764693374755,8.94754809,139.07,139.04,18.69942113]
[1764693375173,8.94754809,139.07,139.04,17.97942113]
[1764693375477,8.2,139.1,139.05,0.72]
[1764693375681,8.94754809,139.08,139.04,17.97942113]
[1764693375984,8.94754809,139.07,139.04,17.97942113]
[1764693376155,44.86714534,139.2,139.04,17.97942113]
[1764693376356,7.48718651,139.14,139.06,25.16899179]
[1764693376561,8.94754809,139.11,139.06,25.16899179]
[1764693376762,8.94754809,139.12,139.07,0.72]
[1764693377065,8.94754809,139.08,139.05,7.19157104]
[1764693377477,17.14754809,139.08,139.05,7.19157104]
[1764693377654,8.94754809,139.07,139.05,7.19157104]
[1764693377861,8.94754809,139.06,139.04,7.19199363]
[1764693378062,8.94754809,139.08,139.04,7.91199363]
[1764693378276,8.2,139.08,139.05,0.72]
[1764693378479,8.2,139.08,139.06,7.19114051]
[1764693378657,17.14754809,139.08,139.06,7.19114051]
[1764693378861,8.94754809,139.07,139.05,7.19149224]
[1764693379059,17.14754809,139.08,139.05,7.19149224]
[1764693380096,8.2,139.08,139.05,25.17063643]
[1764693380266,8.94754809,139.11,139.06,0.72]
[1764693380586,17.14754809,139.1,139.07,7.19062342]
[1764693380788,8.94754809,139.09,139.07,7.19062342]
[1764693381367,8.2,139.1,139.08,0.72]
[1764693381591,8.2,139.1,139.07,25.16718198]
[1764693381592,8.2,139.1,139.07,25.88718198]
[1764693381793,8.2,139.1,139.08,0.72]
[1764693381996,8.94754809,139.09,139.07,7.19062342]
[1764693382165,17.14754809,139.1,139.07,7.19062342]
[1764693382576,8.94754809,139.08,139.06,7.19114051]
[1764693384002,8.5,139.1,139.06,7.19114051]
[1764693384301,8.94754809,139.08,139.06,7.19114051]
[1764693384473,8.94754809,139.08,139.04,7.19217491]
[1764693384873,8.94754809,139.08,139.04,7.91217491]
[1764693385098,8.2,139.1,139.05,0.72]
[1764693385306,8.94754809,139.09,139.05,0.72]
[1764693385796,8.94754809,139.08,139.05,0.72]
[1764693386088,7.1875671,139.13,139.05,0.72]
[1764693386297,8.94754809,139.11,139.06,8.94754809]
[1764693386493,8.94754809,139.11,139.05,9.66754809]
[1764693386671,8.94754809,139.1,139.06,7.19114051]
[1764693386872,8.94754809,139.09,139.06,25.88899179]
[1764693387072,8.94754809,139.1,139.06,25.88899179]
[1764693387501,8.94754809,139.1,139.07,0.72]
[1764693387699,8.94754809,139.11,139.07,0.72]
[1764693388291,8.2,139.1,139.07,0.72]
[1764693388596,17.14754809,139.1,139.07,0.72]
[1764693388798,17.14754809,139.1,139.08,7.19010641]
[1764693389010,8.2,139.1,139.08,7.19010641]
[1764693389309,8.94754809,139.15,139.09,9.66754809]
[1764693389512,8.94754809,139.17,139.09,0.72]
[1764693389669,0.3,139.2,139.08,25.16537244]
[1764693389670,8.2,139.15,139.11,8.94754809]
[1764693390068,8.2,139.15,139.12,0.72]
[1764693390711,8.94754809,139.13,139.1,0.72]
[1764693391078,8.94754809,139.13,139.1,25.88165192]
[1764693391385,8.94754809,139.11,139.05,0.72]
[1764693391578,8.94754809,139.07,139.01,9.66754809]
[1764693391777,8.94754809,139.07,139.02,8.94754809]
[1764693391977,8.94754809,139.07,139.02,9.66754809]
[1764693392195,8.94754809,139.07,139.03,0.72]
[1764693392495,0.3,139.15,139.06,8.94754809]
[1764693392684,17.14754809,139.12,139.06,8.94754809]
[1764693392883,17.14754809,139.12,139.07,25.88718198]
[1764693393085,8.2,139.12,139.07,25.88718198]
[1764693393283,17.14754809,139.12,139.08,0.7]
[1764693393879,8.2,139.12,139.08,0.7]
[1764693394386,17.14754809,139.12,139.08,0.7]
[1764693394895,8.2,139.12,139.09,25.16356315]
[1764693395106,8.94754809,139.15,139.09,70.05905861]
[1764693395282,8.2,139.14,139.1,0.7]
[1764693395597,17.14754809,139.14,139.1,0.7]
[1764693396597,8.2,139.14,139.11,7.18855581]
[1764693396799,8.2,139.14,139.11,25.15994535]
[1764693397103,8.2,139.14,139.11,25.85994535]
[1764693397292,8.94754809,139.15,139.12,0.7]
[1764693397293,8.2,139.15,139.12,0.7]
[1764693397691,8.94754809,139.18,139.12,9.64754809]
[1764693397910,17.14754809,139.18,139.12,9.64754809]
[1764693398084,17.14754809,139.18,139.13,0.7]
[1764693398510,17.14754809,139.18,139.14,25.15452062]
[1764693399004,17.14754809,139.18,139.14,25.85452062]
[1764693399178,8.2,139.18,139.15,0.7]
[1764693399585,17.14754809,139.18,139.15,0.7]
[1764693399780,8.94754809,139.16,139.08,0.7]
[1764693400009,15.3850628,139.18,139.07,0.7]
[1764693400179,8.94754809,139.12,139.07,9.64754809]
[1764693400381,8.2,139.11,139.07,0.7]
[1764693400579,14.98011128,139.12,139.08,0.7]
[1764693400787,14.98011128,139.11,139.08,0.7]
[1764693401192,14.98011128,139.12,139.08,0.7]
[1764693401387,23.18011128,139.13,139.08,0.7]
[1764693401699,23.18011128,139.14,139.08,15.68011128]
[1764693401891,8.2,139.14,139.09,14.98011128]
[1764693402209,23.18011128,139.16,139.11,14.98011128]
[1764693402400,7.48184429,139.24,139.14,25.15452062]
[1764693402608,7.48184429,139.24,139.14,40.8046319]
[1764693402794,14.98011128,139.2,139.14,40.1346319]
[1764693402990,8.5,139.23,139.15,15.65011128]
[1764693403185,14.98011128,139.22,139.16,14.98011128]
[1764693403409,14.98011128,139.21,139.16,0.67]
[1764693403906,14.98011128,139.22,139.16,15.65011128]
[1764693404207,14.98011128,139.22,139.16,0.67]
[1764693404412,14.98011128,139.22,139.17,25.14909821]
[1764693404589,23.18011128,139.22,139.17,25.14909821]
[1764693404790,14.98011128,139.22,139.18,0.67]
[1764693404991,8.2,139.22,139.18,0.67]
[1764693405187,23.18011128,139.22,139.18,0.67]
[1764693405587,14.98011128,139.21,139.18,0.67]
[1764693405908,23.18011128,139.22,139.18,0.67]
[1764693406492,8.2,139.22,139.18,0.67]
[1764693406693,8.2,139.22,139.19,7.18442416]
[1764693406990,23.18011128,139.22,139.19,7.18442416]
[1764693407805,14.98011128,139.22,139.19,7.18442416]
[1764693407988,23.18011128,139.22,139.19,25.14548458]
[1764693408395,23.18011128,139.22,139.19,25.81548458]
[1764693408891,14.98011128,139.24,139.2,0.67]
[1764693409214,23.18011128,139.24,139.2,0.67]
[1764693409713,14.98011128,139.21,139.11,8.2]
[1764693409903,8.2,139.2,139.11,44.0]
[1764693410093,14.98011128,139.18,139.12,15.65011128]
[1764693410415,14.98011128,139.17,139.12,44.67]
[1764693410708,14.98011128,139.17,139.14,7.18700589]
[1764693410902,15.38465974,139.19,139.13,7.85746891]
[1764693411088,0.3,139.18,139.11,18.6409216]
[1764693411289,14.98011128,139.14,139.11,18.6409216]
[1764693411515,0.3,139.21,139.12,7.85763259]
[1764693411702,14.98011128,139.16,139.12,25.82773034]
[1764693412101,14.98011128,139.16,139.13,0.67]
[1764693412295,14.98011128,139.14,139.12,7.18763259]
[1764693412496,8.2,139.17,139.12,7.18763259]
[1764693412801,14.98011128,139.13,139.11,7.18855581]
[1764693413612,14.98011128,139.14,139.12,0.67]
[1764693414318,14.98011128,139.14,139.11,25.15994535]
[1764693414502,14.98011128,139.16,139.12,0.67]
[1764693414822,23.18011128,139.17,139.13,7.18752246]
[1764693415110,14.98011128,139.16,139.13,25.15632861]
[1764693415322,14.98011128,139.14,139.13,7.18752246]
[1764693415794,14.98011128,139.14,139.11,7.18855581]
[1764693415995,15.68547447,139.17,139.06,0.67]
[1764693415996,14.98011128,139.12,139.06,0.67]
[1764693416199,14.98011128,139.1,139.06,7.86114051]
[1764693416533,14.98011128,139.11,139.06,7.86114051]
[1764693416730,14.98011128,139.11,139.07,25.16702422]
[1764693417039,8.2,139.12,139.07,25.83702422]
[1764693417214,14.98011128,139.14,139.08,15.65011128]
[1764693417416,23.18011128,139.15,139.09,14.98011128]
[1764693417635,23.18011128,139.15,139.09,15.65011128]
[1764693417843,23.18011128,139.15,139.1,0.67]
[1764693418144,8.2,139.15,139.1,15.65011128]
[1764693418351,8.2,139.15,139.11,14.98011128]
[1764693418519,8.2,139.15,139.11,15.65011128]
[1764693418719,8.2,139.15,139.12,0.67]
[1764693418919,8.2,139.15,139.13,7.18752246]
[1764693419139,14.98011128,139.17,139.13,7.18752246]
[1764693419345,23.18011128,139.17,139.13,7.85752246]
[1764693420047,14.98011128,139.16,139.13,7.18752246]
[1764693420621,8.2,139.17,139.13,7.18752246]
[1764693420823,14.98011128,139.16,139.13,7.18752246]
[1764693421239,14.98011128,139.16,139.12,25.1574473]
[1764693421423,14.98011128,139.16,139.12,25.8274473]
[1764693421620,23.18011128,139.17,139.13,0.67]
[1764693421826,14.98011128,139.16,139.12,25.8274473]
[1764693422353,14.98011128,139.15,139.12,25.8274473]
[1764693422742,14.98011128,139.16,139.12,25.8274473]
[1764693422947,8.2,139.17,139.13,0.67]
[1764693423152,8.2,139.17,139.13,15.65011128]
[1764693423334,8.2,139.17,139.14,25.15452062]
[1764693423531,23.18011128,139.2,139.14,40.8046319]
[1764693423729,14.98011128,139.21,139.16,14.98011128]
[1764693424040,14.98011128,139.21,139.15,15.65011128]
[1764693424041,14.98011128,139.2,139.15,15.65011128]
[1764693424440,14.98011128,139.2,139.16,0.67]
[1764693424752,8.2,139.21,139.16,0.67]
[1764693425054,14.98011128,139.2,139.16,0.67]
[1764693425434,14.98011128,139.2,139.17,25.14909821]
[1764693425835,23.18011128,139.21,139.17,25.81909821]
[1764693426547,8.2,139.21,139.18,0.67]
[1764693427162,23.18011128,139.21,139.18,0.67]
[1764693427364,8.2,139.21,139.18,0.67]
[1764693427656,0.1,139.25,139.2,14.98011128]
[1764693428155,0.1,139.25,139.21,15.65011128]
[1764693428748,0.1,139.25,139.21,0.67]
[1764693429060,15.08011128,139.25,139.21,0.67]
[1764693429283,0.1,139.25,139.24,14.98011128]
[1764693429558,0.1,139.27,139.25,7.18132854]
[1764693429851,0.1,139.27,139.25,22.83143982]
[1764693430055,0.1,139.27,139.26,0.67]
[1764693430560,0.1,139.27,139.26,15.65011128]
[1764693431544,3.24159056,139.3,139.26,84.86702065]
[1764693431867,3.24159056,139.3,139.29,14.98011128]
[1764693432248,3.24159056,139.3,139.29,15.68011128]
[1764693433156,3.24159056,139.3,139.29,0.7]
[1764693433363,3.24159056,139.3,139.29,15.68011128]
[1764693433745,3.24159056,139.3,139.29,22.85937755]
[1764693434669,3.24159056,139.3,139.29,7.87926627]
[1764693435167,18.22170184,139.3,139.25,22.16143982]
[1764693435334,18.22170184,139.3,139.25,22.86143982]
[1764693435531,18.22170184,139.3,139.26,17.95203217]
[1764693435738,14.98011128,139.28,139.23,14.98011128]
[1764693435960,14.98011128,139.29,139.24,15.68011128]
[1764693436462,18.22170184,139.3,139.25,14.98011128]
[1764693436659,14.98011128,139.29,139.24,0.7]
[1764693436870,14.98011128,139.28,139.24,0.7]
[1764693437540,18.22170184,139.3,139.25,14.98011128]
[1764693437855,3.24159056,139.3,139.28,14.98011128]
[1764693438044,3.24159056,139.3,139.29,14.98011128]
[1764693438249,3.24159056,139.3,139.27,40.1111517]
[1764693438450,3.24159056,139.3,139.27,25.83104042]
[1764693438653,3.24159056,139.3,139.27,25.13104042]
[1764693438862,3.24159056,139.3,139.27,25.83104042]
[1764693439264,3.24159056,139.3,139.28,0.7]
[1764693439467,3.24159056,139.3,139.28,15.68011128]
[1764693439665,3.24159056,139.3,139.29,14.98011128]
[1764693439871,3.24159056,139.3,139.29,22.85937755]
[1764693440038,8.18,139.33,139.29,76.70387463]
[1764693440248,14.98011128,139.36,139.3,8.88]
[1764693440471,14.98011128,139.36,139.31,14.98011128]
[1764693440767,14.98011128,139.34,139.31,0.7]
[1764693440967,14.98011128,139.34,139.29,61.72376335]
[1764693441176,14.98011128,139.34,139.3,0.7]
[1764693441846,14.98011128,139.34,139.31,7.17823558]
[1764693442189,14.98011128,139.32,139.26,7.18081286]
[1764693442349,14.98011128,139.28,139.26,7.18081286]
[1764693442743,14.98011128,139.28,139.23,15.68011128]
[1764693442744,14.98011128,139.28,139.23,0.7]
[1764693443044,14.98011128,139.28,139.24,7.88184429]
[1764693443259,23.16011128,139.31,139.26,14.98011128]
[1764693443468,14.98011128,139.29,139.25,0.7]
[1764693443847,14.98011128,139.29,139.26,7.18081286]
[1764693444157,14.98011128,139.3,139.26,7.18081286]
[1764693444358,14.98011128,139.29,139.26,25.13284503]
[1764693444948,14.98011128,139.3,139.27,0.7]
[1764693445153,23.16011128,139.31,139.27,0.7]
[1764693445368,8.18,139.31,139.27,0.7]
[1764693445562,23.16011128,139.31,139.27,0.7]
[1764693445760,14.98011128,139.31,139.27,0.7]
[1764693445965,14.98011128,139.31,139.28,7.17978173]
[1764693446157,23.16011128,139.32,139.28,7.17978173]
[1764693446473,23.16011128,139.32,139.28,25.82923606]
[1764693446652,14.98011128,139.31,139.28,25.82923606]
[1764693447281,14.98011128,139.34,139.29,15.68011128]
[1764693447569,14.98011128,139.35,139.3,14.98011128]
[1764693447782,14.98011128,139.35,139.3,15.68011128]
[1764693447960,14.98011128,139.37,139.32,14.98011128]
[1764693448167,15.08011128,139.38,139.33,14.98011128]
[1764693448364,14.98011128,139.36,139.31,76.69511377]
[1764693448681,14.98011128,139.36,139.32,0.7]
[1764693449758,0.1,139.38,139.32,0.7]
[1764693449962,14.98011128,139.36,139.33,25.12021818]
[1764693450262,14.98011128,139.36,139.33,7.17720519]
[1764693451561,14.98011128,139.34,139.28,0.7]
[1764693451769,0.3,139.35,139.28,0.7]
[1764693451967,14.98011128,139.32,139.28,25.82921141]
[1764693452168,7.17688631,139.34,139.28,25.82921141]
[1764693452478,14.98011128,139.32,139.28,25.82921141]
[1764693453074,0.3,139.35,139.28,25.12921141]
[1764693453275,8.18,139.37,139.33,14.98011128]
[1764693453684,8.18,139.37,139.33,15.68011128]
[1764693453869,8.18,139.37,139.34,7.17669011]
[1764693454177,15.08011128,139.38,139.34,7.17669011]
[1764693454178,0.1,139.38,139.34,40.79852666]
[1764693454387,0.1,139.38,139.35,15.68011128]
[1764693454585,15.08011128,139.38,139.34,25.81841538]
[1764693454897,0.1,139.38,139.37,14.98011128]
[1764693455266,0.1,139.38,139.36,14.98011128]
[1764693455470,14.98011128,139.37,139.33,7.87699971]
[1764693456273,15.08011128,139.38,139.33,40.80012398]
[1764693456471,15.08011128,139.38,139.33,25.8200127]
[1764693456664,15.08011128,139.38,139.33,40.80012398]
[1764693456866,14.98011128,139.37,139.31,8.18]
[1764693457066,14.98011128,139.36,139.33,0.7]
[1764693457288,14.98011128,139.37,139.33,0.7]
[1764693457993,14.98011128,139.37,139.34,7.17669011]
[1764693458297,14.98011128,139.37,139.33,0.7]
[1764693458593,14.98011128,139.36,139.31,14.98011128]
[1764693458797,14.98011128,139.36,139.31,0.7]
[1764693458972,14.98011128,139.36,139.32,0.7]
[1764693459592,14.98011128,139.37,139.32,15.68011128]
[1764693459901,14.98011128,139.37,139.32,0.7]
[1764693460203,14.98011128,139.37,139.33,0.65]
[1764693460494,14.98011128,139.34,139.31,7.17804797]
[1764693460881,23.16011128,139.35,139.31,7.17804797]
[1764693461085,8.18,139.35,139.32,0.65]
[1764693461688,0.1,139.38,139.33,14.98011128]
[1764693461997,0.1,139.38,139.35,14.98011128]
[1764693462203,0.1,139.38,139.36,7.17566016]
[1764693462497,0.1,139.38,139.36,7.87566016]
[1764693462807,9.02588766,139.38,139.36,7.17566016]
[1764693463004,0.1,139.38,139.36,7.17566016]
[1764693463515,9.22588766,139.37,139.33,7.17720519]
[1764693463807,8.92588766,139.37,139.33,25.82021818]
[1764693463988,9.02588766,139.38,139.34,0.7]
[1764693464304,0.1,139.38,139.35,34.04250049]
[1764693464614,0.1,139.38,139.36,0.7]
[1764693464771,0.1,139.38,139.36,9.62588766]
[1764693465100,0.1,139.38,139.37,0.7]
[1764693466174,0.43459241,139.49,139.37,64.65907125]
[1764693466374,8.92588766,139.46,139.41,8.92588766]
[1764693466606,8.92588766,139.45,139.4,8.92588766]
[1764693466807,0.3,139.48,139.38,0.7]
[1764693466969,8.92588766,139.45,139.39,8.92588766]
[1764693467168,8.92588766,139.45,139.38,0.7]
[1764693467373,8.92588766,139.44,139.39,8.92588766]
[1764693467596,8.92588766,139.44,139.38,0.7]
[1764693467793,8.92588766,139.44,139.39,8.92588766]
[1764693467992,0.3,139.47,139.39,8.92588766]
[1764693468307,8.92588766,139.44,139.41,7.17308657]
[1764693468507,8.92588766,139.46,139.41,25.10580301]
[1764693468676,8.92588766,139.45,139.41,25.80580301]
[1764693468877,7.46987321,139.48,139.39,8.86]
[1764693468878,8.92588766,139.44,139.39,8.86]
[1764693469093,8.92588766,139.41,139.37,7.17492549]
[1764693469301,8.92588766,139.4,139.37,7.17492549]
[1764693469480,0.3,139.44,139.37,25.11278873]
[1764693469802,8.92588766,139.42,139.38,0.7]
[1764693469993,8.16,139.45,139.38,0.7]
[1764693469994,8.92588766,139.43,139.38,0.7]
[1764693470177,8.92588766,139.43,139.38,9.62588766]
[1764693470378,8.92588766,139.42,139.39,7.17411579]
[1764693471298,8.92588766,139.44,139.4,0.7]
[1764693471495,8.92588766,139.42,139.39,25.10940526]
[1764693471716,8.92588766,139.4,139.39,7.17411579]
[1764693471878,0.3,139.44,139.38,7.17442493]
[1764693472078,8.92588766,139.41,139.38,7.17442493]
[1764693473396,8.92588766,139.4,139.38,7.17442493]
[1764693473940,8.92588766,139.41,139.38,25.11100119]
[1764693474408,8.92588766,139.41,139.38,7.17442493]
[1764693474585,8.92588766,139.39,139.37,7.17496895]
[1764693474903,7.17257208,139.42,139.36,7.1755517]
[1764693474904,8.92588766,139.38,139.36,7.1755517]
[1764693475287,8.92588766,139.39,139.36,7.1755517]
[1764693475485,8.92588766,139.38,139.33,17.94232438]
[1764693475680,8.92588766,139.37,139.33,17.94232438]
[1764693475897,8.92588766,139.35,139.32,7.87772035]
[1764693476203,0.3,139.42,139.33,9.62588766]
[1764693476507,8.92588766,139.38,139.33,9.62588766]
[1764693476707,8.92588766,139.39,139.34,34.74430304]
[1764693477092,8.92588766,139.39,139.35,0.7]
[1764693477293,7.47221908,139.43,139.35,9.62588766]
[1764693477490,7.47221908,139.43,139.35,0.7]
[1764693477491,8.92588766,139.39,139.35,0.7]
[1764693478409,8.92588766,139.4,139.35,0.7]
[1764693478585,7.47322344,139.41,139.36,7.17566016]
[1764693478785,8.92588766,139.4,139.36,7.17566016]
[1764693479097,8.92588766,139.37,139.32,18.64366705]
[1764693479400,8.92588766,139.36,139.33,7.17720519]
[1764693479582,8.92588766,139.37,139.33,7.17720519]
[1764693479983,7.47322344,139.41,139.34,0.7]
[1764693480322,8.92588766,139.4,139.34,9.62588766]
[1764693480621,8.92588766,139.4,139.35,25.11661283]
[1764693480796,0.3,139.39,139.32,17.94364091]
[1764693481000,8.16,139.42,139.35,8.92588766]
[1764693481224,17.08588766,139.42,139.36,8.92588766]
[1764693481430,8.46,139.43,139.37,8.92588766]
[1764693481889,17.38588766,139.43,139.37,9.62588766]
[1764693482319,0.3,139.48,139.39,8.92588766]
[1764693482490,0.3,139.47,139.39,8.92588766]
[1764693482693,8.92588766,139.46,139.41,25.10580301]
[1764693482910,8.92588766,139.46,139.4,0.7]
[1764693482911,8.92588766,139.44,139.39,17.93528851]
[1764693483096,8.92588766,139.44,139.4,7.17352238]
[1764693483295,8.92588766,139.45,139.4,25.10752524]
[1764693483496,8.92588766,139.45,139.4,25.80752524]
[1764693483692,8.92588766,139.44,139.4,7.87352238]
[1764693483897,8.92588766,139.44,139.4,7.17352238]
[1764693484521,8.92588766,139.42,139.4,7.17352238]
[1764693485018,8.92588766,139.43,139.39,25.10878587]
[1764693485320,0.3,139.45,139.39,25.10878587]
[1764693485494,8.92588766,139.44,139.39,25.10878587]
[1764693485689,8.92588766,139.44,139.4,0.7]
[1764693486221,8.92588766,139.46,139.4,9.62588766]
[1764693486392,8.16,139.47,139.41,8.92588766]
[1764693486714,8.92588766,139.42,139.38,7.17444233]
[1764693487017,8.92588766,139.42,139.37,7.17514529]
[1764693487206,8.92588766,139.44,139.38,8.92588766]
[1764693487524,8.16,139.47,139.41,8.92588766]
[1764693487694,8.92588766,139.42,139.37,25.11240711]
[1764693488019,8.92588766,139.41,139.37,25.11240711]
[1764693488333,8.92588766,139.39,139.37,7.17514529]
[1764693488620,8.16,139.42,139.37,7.87514529]
[1764693488819,8.92588766,139.41,139.39,7.17411579]
[1764693489022,17.08588766,139.43,139.39,25.10940526]
[1764693489195,8.16,139.43,139.4,0.7]
[1764693489528,8.16,139.47,139.4,9.62588766]
[1764693489819,8.92588766,139.46,139.4,9.62588766]
[1764693490192,8.92588766,139.45,139.41,0.7]
[1764693490627,8.92588766,139.44,139.39,25.10940526]
[1764693490799,8.92588766,139.44,139.39,17.93528947]
[1764693490999,8.92588766,139.45,139.4,0.7]
[1764693491215,8.46,139.47,139.4,9.62588766]
[1764693491419,8.92588766,139.45,139.4,9.62588766]
[1764693491600,8.92588766,139.44,139.4,0.7]
[1764693491802,18.35830182,139.49,139.41,0.71]
[1764693491803,0.43459241,139.49,139.41,0.71]
[1764693492118,8.92588766,139.48,139.43,8.92588766]
[1764693492433,8.92588766,139.48,139.41,0.71]
[1764693492434,8.92588766,139.48,139.42,8.92588766]
[1764693492598,8.92588766,139.47,139.42,8.92588766]
[1764693492809,0.43459241,139.49,139.45,25.09860164]
[1764693493315,0.43459241,139.49,139.44,7.17147613]
[1764693493316,9.22588766,139.48,139.44,7.17147613]
[1764693493508,0.3,139.48,139.44,7.17147613]
[1764693493709,8.92588766,139.48,139.44,7.88147613]
[1764693493909,0.43459241,139.49,139.45,9.63588766]
[1764693494105,0.43459241,139.49,139.47,8.92588766]
[1764693494613,0.43459241,139.49,139.48,0.71]
[1764693494809,0.43459241,139.49,139.48,7.87948666]
[1764693495015,9.66048007,139.49,139.43,0.71]
[1764693495209,8.92588766,139.47,139.43,0.1065]
[1764693495408,8.92588766,139.48,139.42,8.92588766]
[1764693495606,9.66048007,139.49,139.43,8.92588766]
[1764693496242,9.66048007,139.49,139.4,8.16]
[1764693496537,8.92588766,139.48,139.42,8.92588766]
[1764693497055,0.43459241,139.49,139.46,8.92588766]
[1764693497213,0.43459241,139.49,139.45,8.92588766]
[1764693497412,0.43459241,139.49,139.45,9.63588766]
[1764693497638,0.43459241,139.49,139.45,0.71]
[1764693498816,8.92588766,139.47,139.42,7.88237521]
[1764693499135,9.36048007,139.49,139.43,8.92588766]
[1764693499346,10.03048007,139.49,139.43,9.63588766]
[1764693499930,8.92588766,139.48,139.43,0.71]
[1764693500138,10.03048007,139.49,139.43,9.63588766]
[1764693500315,0.43459241,139.49,139.45,8.92588766]
[1764693500514,0.43459241,139.49,139.44,9.63588766]
[1764693500932,0.43459241,139.49,139.46,7.17051484]
[1764693501341,1.10459241,139.49,139.46,7.17051484]
[1764693501516,1.10459241,139.49,139.44,7.17154331]
[1764693501517,17.19951778,139.49,139.44,7.17154331]
[1764693501716,8.92588766,139.47,139.4,8.16]
[1764693501918,8.92588766,139.46,139.41,8.92588766]
[1764693502232,9.59588766,139.47,139.42,8.92588766]
[1764693502418,0.43459241,139.49,139.44,8.92588766]
[1764693502834,1.10459241,139.49,139.44,9.63588766]
[1764693503041,1.10459241,139.49,139.45,7.17102904]
[1764693503540,0.43459241,139.49,139.47,8.92588766]
[1764693503731,0.43459241,139.49,139.46,0.71]
[1764693503931,0.43459241,139.49,139.48,8.92588766]
[1764693504317,1e-08,139.49,139.48,9.63588766]
[1764693504520,0.1,139.52,139.48,9.63588766]
[1764693504721,0.1,139.52,139.51,8.92588766]
[1764693504923,0.1,139.52,139.51,16.09383261]
[1764693505232,0.1,139.52,139.51,16.80383261]
[1764693505436,0.1,139.52,139.51,7.16794495]
[1764693506944,0.1,139.52,139.5,16.09420706]
[1764693507546,0.1,139.52,139.5,7.8783194]
[1764693507842,0.1,139.52,139.5,7.1683194]
[1764693508740,0.1,139.52,139.51,9.63588766]
[1764693510621,0.1,139.52,139.51,16.80383261]
[1764693510821,0.1,139.52,139.51,7.16794495]
[1764693512133,0.1,139.52,139.5,7.16824675]
[1764693512819,0.1,139.52,139.49,7.16889143]
[1764693513429,0.1,139.52,139.49,16.09477909]
[1764693513840,0.1,139.52,139.49,34.0172108]
[1764693514155,0.1,139.52,139.5,9.59588766]
[1764693514334,0.1,139.52,139.51,8.92588766]
[1764693514724,0.1,139.52,139.51,31.05238503]
[1764693514922,0.1,139.52,139.51,9.59588766]
[1764693516056,0.1,139.52,139.51,16.76383261]
[1764693516346,1e-08,139.52,139.51,16.76383261]
[1764693517054,1e-08,139.52,139.51,37.7921897]
[1764693518524,1e-08,139.52,139.51,37.1221897]
[1764693518723,1e-08,139.52,139.51,7.16794495]
[1764693519420,1e-08,139.52,139.51,16.09383261]
[1764693520351,1e-08,139.52,139.51,16.76383261]
[1764693520930,1e-08,139.52,139.51,24.90383261]
[1764693521731,1e-08,139.52,139.51,7.16794495]
[1764693522534,1e-08,139.52,139.5,7.16827177]
[1764693522831,0.68000001,139.52,139.5,7.16827177]
[1764693523354,0.68,139.51,139.5,16.09415943]
[1764693523528,1e-08,139.52,139.5,7.16827177]
[1764693523730,0.68000001,139.52,139.5,7.16827177]
[1764693524472,23.04555969,139.51,139.46,22.01516097]
[1764693524764,14.90555969,139.47,139.41,7.1728507]
[1764693524928,0.68,139.49,139.45,14.90555969]
[1764693525124,0.68,139.49,139.42,0.67]
[1764693525353,15.58555969,139.49,139.43,14.90555969]
[1764693525550,0.68,139.49,139.44,14.90555969]
[1764693525756,1e-08,139.52,139.47,14.90555969]
[1764693525938,1e-08,139.52,139.49,14.90555969]